[Event "Early-Titled-Tuesday-Blitz-May-28-2024"]
[Site "Chess.com"]
[Date "2024.05.28"]
[Round "5"]
[White "maracayo"]
[Black "lluiss"]
[Result "1/2-1/2"]
[WhiteElo "2382"]
[BlackElo "2177"]
[TimeControl "180+1"]
[EndTime "8:56:56 PDT"]
[Termination "Game drawn - insufficient material"]

1. e4 {[%clk 0:03:00.9]} 1... c5 {[%clk 0:02:47.6]} 2. Nf3 {[%clk 0:02:59.7]}
2... d6 {[%clk 0:02:47.5]} 3. d4 {[%clk 0:02:57.4]} 3... cxd4 {[%clk 0:02:47.1]}
4. Nxd4 {[%clk 0:02:58.3]} 4... Nf6 {[%clk 0:02:46.5]} 5. Nc3 {[%clk 0:02:57.3]}
5... g6 {[%clk 0:02:46.1]} 6. Be3 {[%clk 0:02:55.5]} 6... Bg7 {[%clk 0:02:45.6]}
7. Bc4 {[%clk 0:02:50.6]} 7... O-O {[%clk 0:02:44.5]} 8. Bb3 {[%clk 0:02:32.3]}
8... Nc6 {[%clk 0:02:42.7]} 9. f3 {[%clk 0:02:27.8]} 9... Bd7 {[%clk 0:02:35]}
10. Qd2 {[%clk 0:02:25.9]} 10... Nxd4 {[%clk 0:02:34.8]} 11. Bxd4 {[%clk
0:02:24.4]} 11... b5 {[%clk 0:02:34.9]} 12. a3 {[%clk 0:02:18.2]} 12... a5
{[%clk 0:02:33.8]} 13. Nd5 {[%clk 0:02:15.1]} 13... Nxd5 {[%clk 0:02:00]} 14.
Bxd5 {[%clk 0:02:13.5]} 14... Bxd4 {[%clk 0:01:48]} 15. Qxd4 {[%clk 0:02:11.8]}
15... Rc8 {[%clk 0:01:48]} 16. c3 {[%clk 0:02:09.8]} 16... Qc7 {[%clk
0:01:42.9]} 17. h4 {[%clk 0:02:04.4]} 17... Qc5 {[%clk 0:01:17.5]} 18. Qxc5
{[%clk 0:01:28.2]} 18... Rxc5 {[%clk 0:01:11.9]} 19. Kd2 {[%clk 0:01:28.6]}
19... b4 {[%clk 0:00:54.4]} 20. axb4 {[%clk 0:01:10.2]} 20... axb4 {[%clk
0:00:53.5]} 21. Ra7 {[%clk 0:01:11.1]} 21... bxc3+ {[%clk 0:00:50.2]} 22. bxc3
{[%clk 0:01:10.3]} 22... e6 {[%clk 0:00:40.4]} 23. Rxd7 {[%clk 0:00:52]} 23...
exd5 {[%clk 0:00:39.7]} 24. Rxd6 {[%clk 0:00:50.7]} 24... dxe4 {[%clk
0:00:39.7]} 25. fxe4 {[%clk 0:00:50.9]} 25... Ra8 {[%clk 0:00:33.9]} 26. Rc1
{[%clk 0:00:42.8]} 26... Ra2+ {[%clk 0:00:32.8]} 27. Rc2 {[%clk 0:00:42.3]}
27... Ra4 {[%clk 0:00:32.9]} 28. Kd3 {[%clk 0:00:40]} 28... Rh5 {[%clk 0:00:30]}
29. g3 {[%clk 0:00:39.1]} 29... Re5 {[%clk 0:00:28.6]} 30. Rd4 {[%clk
0:00:38.2]} 30... Ra8 {[%clk 0:00:26.3]} 31. c4 {[%clk 0:00:37.9]} 31... Rc8
{[%clk 0:00:26]} 32. Rd5 {[%clk 0:00:36.4]} 32... Re6 {[%clk 0:00:25.9]} 33. c5
{[%clk 0:00:35.8]} 33... Kg7 {[%clk 0:00:23.9]} 34. Rd6 {[%clk 0:00:33.9]} 34...
Kf6 {[%clk 0:00:20.9]} 35. Rd7 {[%clk 0:00:27.4]} 35... Re5 {[%clk 0:00:19.4]}
36. Rf2+ {[%clk 0:00:26.2]} 36... Ke6 {[%clk 0:00:19.6]} 37. Rfxf7 {[%clk
0:00:22.4]} 37... Rexc5 {[%clk 0:00:18.7]} 38. Rfe7+ {[%clk 0:00:20.4]} 38...
Kf6 {[%clk 0:00:18.4]} 39. Rf7+ {[%clk 0:00:20.3]} 39... Ke6 {[%clk 0:00:17.6]}
40. Rde7+ {[%clk 0:00:20.1]} 40... Kd6 {[%clk 0:00:17.8]} 41. Rxh7 {[%clk
0:00:18.8]} 41... Rc3+ {[%clk 0:00:14.5]} 42. Ke2 {[%clk 0:00:19.2]} 42... Rxg3
{[%clk 0:00:14.1]} 43. Rd7+ {[%clk 0:00:15.7]} 43... Ke5 {[%clk 0:00:12.2]} 44.
Rhe7+ {[%clk 0:00:14.7]} 44... Kf6 {[%clk 0:00:12.4]} 45. Rc7 {[%clk 0:00:13.8]}
45... Rxc7 {[%clk 0:00:11.2]} 46. Rxc7 {[%clk 0:00:13.1]} 46... Rg4 {[%clk
0:00:11.5]} 47. Kf3 {[%clk 0:00:12.2]} 47... Rxh4 {[%clk 0:00:11.3]} 48. Rc6+
{[%clk 0:00:12.3]} 48... Kf7 {[%clk 0:00:10.5]} 49. e5 {[%clk 0:00:12.2]} 49...
Rb4 {[%clk 0:00:09.1]} 50. Rf6+ {[%clk 0:00:12.1]} 50... Kg7 {[%clk 0:00:09]}
51. Rf4 {[%clk 0:00:11.8]} 51... Rxf4+ {[%clk 0:00:08.2]} 52. Kxf4 {[%clk
0:00:11.5]} 52... Kf7 {[%clk 0:00:08.5]} 53. Kg5 {[%clk 0:00:11.2]} 53... Ke6
{[%clk 0:00:08.8]} 54. Kxg6 {[%clk 0:00:11.2]} 54... Kxe5 {[%clk 0:00:09.5]}
1/2-1/2

[Event "Early-Titled-Tuesday-Blitz-May-28-2024"]
[Site "Chess.com"]
[Date "2024.05.28"]
[Round "5"]
[White "mostafa_sakha"]
[Black "PonyQueen07"]
[Result "0-1"]
[WhiteElo "2302"]
[BlackElo "2061"]
[TimeControl "180+1"]
[EndTime "8:56:57 PDT"]
[Termination "PonyQueen07 won by resignation"]

1. d4 {[%clk 0:02:45.8]} 1... Nf6 {[%clk 0:02:59.8]} 2. c4 {[%clk 0:02:45.6]}
2... e6 {[%clk 0:02:59.8]} 3. Nc3 {[%clk 0:02:45.3]} 3... Bb4 {[%clk 0:02:59.8]}
4. e3 {[%clk 0:02:45.3]} 4... b6 {[%clk 0:03:00]} 5. Bd3 {[%clk 0:02:43.8]} 5...
Bb7 {[%clk 0:02:59.4]} 6. Nf3 {[%clk 0:02:43.7]} 6... d6 {[%clk 0:02:56]} 7. O-O
{[%clk 0:02:43.2]} 7... Bxc3 {[%clk 0:02:53.3]} 8. bxc3 {[%clk 0:02:42.5]} 8...
Nbd7 {[%clk 0:02:50.1]} 9. Nd2 {[%clk 0:02:18.9]} 9... O-O {[%clk 0:02:42.7]}
10. e4 {[%clk 0:02:15.8]} 10... e5 {[%clk 0:02:41.6]} 11. f4 {[%clk 0:02:13.1]}
11... h6 {[%clk 0:02:24.5]} 12. fxe5 {[%clk 0:01:52.2]} 12... dxe5 {[%clk
0:02:23.7]} 13. Qc2 {[%clk 0:01:51.6]} 13... c5 {[%clk 0:01:56.1]} 14. d5 {[%clk
0:01:46.2]} 14... Ne8 {[%clk 0:01:45.6]} 15. Nf3 {[%clk 0:01:43.7]} 15... Nd6
{[%clk 0:01:38.8]} 16. Qf2 {[%clk 0:01:30.6]} 16... f5 {[%clk 0:01:28.1]} 17.
exf5 {[%clk 0:00:51.7]} 17... e4 {[%clk 0:01:23.2]} 18. Qg3 {[%clk 0:00:51.4]}
18... Qf6 {[%clk 0:01:15.3]} 19. Bf4 {[%clk 0:00:21]} 19... Nxf5 {[%clk
0:01:08]} 20. Qh3 {[%clk 0:00:19.4]} 20... exd3 {[%clk 0:01:04.7]} 21. Rae1
{[%clk 0:00:14.7]} 21... Rae8 {[%clk 0:00:59.5]} 22. g4 {[%clk 0:00:13]} 22...
Rxe1 {[%clk 0:00:54.7]} 23. Nxe1 {[%clk 0:00:09.1]} 23... Ne7 {[%clk 0:00:32.8]}
24. Qxd3 {[%clk 0:00:07.7]} 24... g5 {[%clk 0:00:25.3]} 25. Bg3 {[%clk
0:00:03.2]} 25... Qxf1+ {[%clk 0:00:24.6]} 26. Qxf1 {[%clk 0:00:04.1]} 26...
Rxf1+ {[%clk 0:00:24.3]} 27. Kxf1 {[%clk 0:00:05]} 27... Nf6 {[%clk 0:00:21.9]}
28. Nf3 {[%clk 0:00:03.2]} 28... Nxg4 {[%clk 0:00:20.6]} 29. h3 {[%clk
0:00:03.1]} 29... Ne3+ {[%clk 0:00:19.5]} 30. Kg1 {[%clk 0:00:02.9]} 30... Nxc4
{[%clk 0:00:19]} 31. d6 {[%clk 0:00:03.5]} 31... Bxf3 {[%clk 0:00:11.4]} 32.
dxe7 {[%clk 0:00:03.4]} 32... Bc6 {[%clk 0:00:10.8]} 33. Bb8 {[%clk 0:00:04]}
33... a6 {[%clk 0:00:09.2]} 34. Kf2 {[%clk 0:00:04.2]} 34... Kf7 {[%clk
0:00:09.3]} 35. Kg3 {[%clk 0:00:04.7]} 35... Kxe7 {[%clk 0:00:09.6]} 36. Bc7
{[%clk 0:00:05]} 36... b5 {[%clk 0:00:08]} 37. Kg4 {[%clk 0:00:04]} 37... b4
{[%clk 0:00:07]} 38. cxb4 {[%clk 0:00:03.8]} 38... cxb4 {[%clk 0:00:06.9]} 39.
Kh5 {[%clk 0:00:04.7]} 39... Bg2 {[%clk 0:00:05.6]} 40. h4 {[%clk 0:00:04.2]}
40... gxh4 {[%clk 0:00:05.5]} 41. Kxh6 {[%clk 0:00:04.7]} 41... h3 {[%clk
0:00:05.6]} 42. Kg5 {[%clk 0:00:05.3]} 42... Ke6 {[%clk 0:00:05.8]} 43. Bg3
{[%clk 0:00:04.8]} 43... Kd5 {[%clk 0:00:06]} 44. Kf4 {[%clk 0:00:05.3]} 44...
Kd4 {[%clk 0:00:06.4]} 45. Bf2+ {[%clk 0:00:04.8]} 45... Kc3 {[%clk 0:00:07]}
46. Bg1 {[%clk 0:00:05.5]} 46... Kb2 {[%clk 0:00:07.3]} 0-1

[Event "Early-Titled-Tuesday-Blitz-May-28-2024"]
[Site "Chess.com"]
[Date "2024.05.28"]
[Round "5"]
[White "LuisFSiles"]
[Black "zsizsi99"]
[Result "1/2-1/2"]
[WhiteElo "2390"]
[BlackElo "2545"]
[TimeControl "180+1"]
[EndTime "8:56:58 PDT"]
[Termination "Game drawn by repetition"]

1. e4 {[%clk 0:02:58.5]} 1... c5 {[%clk 0:02:59.9]} 2. Nf3 {[%clk 0:02:57.7]}
2... Nc6 {[%clk 0:03:00.6]} 3. c3 {[%clk 0:02:56.3]} 3... Nf6 {[%clk 0:02:59.4]}
4. e5 {[%clk 0:02:56.3]} 4... Nd5 {[%clk 0:02:59.7]} 5. d4 {[%clk 0:02:57]} 5...
cxd4 {[%clk 0:02:59.1]} 6. cxd4 {[%clk 0:02:57.9]} 6... d6 {[%clk 0:02:59.3]} 7.
Bc4 {[%clk 0:02:57.7]} 7... dxe5 {[%clk 0:02:59.2]} 8. Bxd5 {[%clk 0:02:57.1]}
8... Qxd5 {[%clk 0:02:58.8]} 9. Nc3 {[%clk 0:02:56.8]} 9... Qa5 {[%clk
0:02:52.1]} 10. d5 {[%clk 0:02:56.8]} 10... Nb4 {[%clk 0:02:31.1]} 11. Nxe5
{[%clk 0:02:55.6]} 11... Bf5 {[%clk 0:02:28.8]} 12. O-O {[%clk 0:02:41.4]} 12...
Rd8 {[%clk 0:02:01.5]} 13. Qf3 {[%clk 0:02:40.4]} 13... Bg6 {[%clk 0:01:49]} 14.
Rd1 {[%clk 0:02:03.9]} 14... Nc2 {[%clk 0:01:21.9]} 15. Nxg6 {[%clk 0:01:59.1]}
15... hxg6 {[%clk 0:01:21]} 16. Rb1 {[%clk 0:01:54.5]} 16... Nb4 {[%clk
0:00:54.2]} 17. a3 {[%clk 0:01:43.7]} 17... Na6 {[%clk 0:00:52.9]} 18. b4 {[%clk
0:01:42.6]} 18... Qc7 {[%clk 0:00:52.7]} 19. d6 {[%clk 0:01:19.3]} 19... Rxd6
{[%clk 0:00:46.5]} 20. Bf4 {[%clk 0:01:13.1]} 20... Rxd1+ {[%clk 0:00:45.8]} 21.
Rxd1 {[%clk 0:01:11.7]} 21... Qc8 {[%clk 0:00:40.8]} 22. Nb5 {[%clk 0:00:58.6]}
22... e6 {[%clk 0:00:24]} 23. Nxa7 {[%clk 0:00:45.3]} 23... Qa8 {[%clk
0:00:11.9]} 24. Nb5 {[%clk 0:00:42.5]} 24... Be7 {[%clk 0:00:11.8]} 25. Nd4
{[%clk 0:00:33.8]} 25... O-O {[%clk 0:00:10.8]} 26. Be3 {[%clk 0:00:31.3]} 26...
Bf6 {[%clk 0:00:10.6]} 27. Nb3 {[%clk 0:00:31.2]} 27... Rd8 {[%clk 0:00:09.7]}
28. Rxd8+ {[%clk 0:00:30.3]} 28... Qxd8 {[%clk 0:00:09.7]} 29. h3 {[%clk
0:00:29.9]} 29... Qd7 {[%clk 0:00:08.3]} 30. Nc5 {[%clk 0:00:29.2]} 30... Nxc5
{[%clk 0:00:08.2]} 31. Bxc5 {[%clk 0:00:29.6]} 31... Qd5 {[%clk 0:00:06.7]} 32.
Qxd5 {[%clk 0:00:26.6]} 32... exd5 {[%clk 0:00:07.1]} 33. Kf1 {[%clk 0:00:27.2]}
33... Bb2 {[%clk 0:00:06.4]} 34. a4 {[%clk 0:00:26.2]} 34... f6 {[%clk
0:00:05.2]} 35. Ke2 {[%clk 0:00:26.5]} 35... Kf7 {[%clk 0:00:05.1]} 36. Kd3
{[%clk 0:00:26.4]} 36... Ke6 {[%clk 0:00:05.6]} 37. b5 {[%clk 0:00:22.8]} 37...
Kd7 {[%clk 0:00:05.7]} 38. a5 {[%clk 0:00:23]} 38... Kc8 {[%clk 0:00:04.2]} 39.
a6 {[%clk 0:00:22.6]} 39... bxa6 {[%clk 0:00:04.1]} 40. bxa6 {[%clk 0:00:23.1]}
40... Be5 {[%clk 0:00:04.6]} 41. g3 {[%clk 0:00:21.7]} 41... g5 {[%clk
0:00:04.5]} 42. g4 {[%clk 0:00:21.4]} 42... g6 {[%clk 0:00:04.7]} 43. f3 {[%clk
0:00:21.8]} 43... Kb8 {[%clk 0:00:04]} 44. Bd4 {[%clk 0:00:21.5]} 44... Ka8
{[%clk 0:00:03.2]} 45. Bb6 {[%clk 0:00:21]} 45... Kb8 {[%clk 0:00:02]} 46. a7+
{[%clk 0:00:19.9]} 46... Ka8 {[%clk 0:00:02.6]} 47. Bd4 {[%clk 0:00:19.6]} 47...
Kb7 {[%clk 0:00:03]} 48. Bc5 {[%clk 0:00:17.5]} 48... Bb2 {[%clk 0:00:02.5]} 49.
Kc2 {[%clk 0:00:16.5]} 49... Be5 {[%clk 0:00:02.5]} 50. Kb3 {[%clk 0:00:16.6]}
50... Bc7 {[%clk 0:00:01.5]} 51. Bd4 {[%clk 0:00:15.8]} 51... Be5 {[%clk
0:00:01.7]} 52. Kc3 {[%clk 0:00:16.2]} 52... Ka8 {[%clk 0:00:01.1]} 53. Kd3
{[%clk 0:00:16.6]} 53... Kb7 {[%clk 0:00:01.8]} 54. Bc5 {[%clk 0:00:16.9]} 54...
Ka8 {[%clk 0:00:02.4]} 55. Bd4 {[%clk 0:00:17.3]} 1/2-1/2

[Event "Early-Titled-Tuesday-Blitz-May-28-2024"]
[Site "Chess.com"]
[Date "2024.05.28"]
[Round "5"]
[White "MdChess1734"]
[Black "SoyuzTM4"]
[Result "1-0"]
[WhiteElo "2422"]
[BlackElo "2206"]
[TimeControl "180+1"]
[EndTime "8:56:59 PDT"]
[Termination "MdChess1734 won on time"]

1. e4 {[%clk 0:02:16.3]} 1... c5 {[%clk 0:02:59.4]} 2. Nf3 {[%clk 0:02:16.4]}
2... d6 {[%clk 0:02:58.5]} 3. d4 {[%clk 0:02:16.5]} 3... cxd4 {[%clk 0:02:58.5]}
4. Nxd4 {[%clk 0:02:17.2]} 4... Nf6 {[%clk 0:02:58.5]} 5. Nc3 {[%clk 0:02:17.8]}
5... e6 {[%clk 0:02:56.8]} 6. Bg5 {[%clk 0:02:14.7]} 6... Nbd7 {[%clk
0:02:54.3]} 7. Qd2 {[%clk 0:02:07.6]} 7... Be7 {[%clk 0:02:52.3]} 8. O-O-O
{[%clk 0:02:04.4]} 8... a6 {[%clk 0:02:51.3]} 9. f4 {[%clk 0:01:49.6]} 9... Qc7
{[%clk 0:02:45]} 10. Kb1 {[%clk 0:01:46.5]} 10... O-O {[%clk 0:02:44.1]} 11. g4
{[%clk 0:01:39.9]} 11... b5 {[%clk 0:02:39.3]} 12. Bxf6 {[%clk 0:01:25.9]} 12...
Nxf6 {[%clk 0:02:30.5]} 13. g5 {[%clk 0:01:26]} 13... Nd7 {[%clk 0:02:28.2]} 14.
f5 {[%clk 0:01:23.7]} 14... b4 {[%clk 0:02:15]} 15. Nce2 {[%clk 0:01:23.1]}
15... Ne5 {[%clk 0:01:52.5]} 16. f6 {[%clk 0:01:11.2]} 16... gxf6 {[%clk
0:01:38.1]} 17. gxf6 {[%clk 0:01:10]} 17... Bxf6 {[%clk 0:01:38.1]} 18. Rg1+
{[%clk 0:01:07.9]} 18... Kh8 {[%clk 0:01:37.5]} 19. Qh6 {[%clk 0:01:06.4]} 19...
Qe7 {[%clk 0:01:36.6]} 20. Nf4 {[%clk 0:00:55.6]} 20... Bb7 {[%clk 0:01:24.6]}
21. Nh5 {[%clk 0:00:14.3]} 21... Ng6 {[%clk 0:01:18.1]} 22. h4 {[%clk
0:00:10.8]} 22... Bxe4 {[%clk 0:01:06.5]} 23. Rg4 {[%clk 0:00:08.5]} 23... Bb7
{[%clk 0:00:47.6]} 24. Nxf6 {[%clk 0:00:07.4]} 24... Qxf6 {[%clk 0:00:46]} 25.
h5 {[%clk 0:00:07.9]} 25... Bf3 {[%clk 0:00:33.8]} 26. hxg6 {[%clk 0:00:05.9]}
26... fxg6 {[%clk 0:00:33.4]} 27. Rh4 {[%clk 0:00:06]} 27... Rf7 {[%clk
0:00:25.9]} 28. Nxf3 {[%clk 0:00:03.9]} 28... Qxf3 {[%clk 0:00:25.3]} 29. Rc1
{[%clk 0:00:04.3]} 29... Qxf1 {[%clk 0:00:20.1]} 30. Qxg6 {[%clk 0:00:04.3]}
30... Qf5 {[%clk 0:00:16.2]} 31. Qh6 {[%clk 0:00:02.9]} 31... Rg8 {[%clk
0:00:12.5]} 32. Qd2 {[%clk 0:00:02.4]} 32... d5 {[%clk 0:00:10.9]} 33. Qxb4
{[%clk 0:00:02.4]} 33... d4 {[%clk 0:00:08.8]} 34. Qxd4+ {[%clk 0:00:02.6]}
34... e5 {[%clk 0:00:07.7]} 35. Qc4 {[%clk 0:00:03.1]} 35... Qg5 {[%clk
0:00:06.1]} 36. Re4 {[%clk 0:00:03.7]} 36... Qxc1+ {[%clk 0:00:05.2]} 37. Kxc1
{[%clk 0:00:03.8]} 37... Rg1+ {[%clk 0:00:03.6]} 38. Kd2 {[%clk 0:00:04.2]}
38... Rg3 {[%clk 0:00:01.4]} 39. Re2 {[%clk 0:00:03.8]} 1-0

[Event "Early-Titled-Tuesday-Blitz-May-28-2024"]
[Site "Chess.com"]
[Date "2024.05.28"]
[Round "5"]
[White "artin10862"]
[Black "yobdc"]
[Result "0-1"]
[WhiteElo "3058"]
[BlackElo "2528"]
[TimeControl "180+1"]
[EndTime "8:57:01 PDT"]
[Termination "yobdc won by resignation"]

1. e4 {[%clk 0:02:40.9]} 1... c5 {[%clk 0:02:58.2]} 2. Nf3 {[%clk 0:02:40.9]}
2... Nf6 {[%clk 0:02:58.7]} 3. e5 {[%clk 0:02:38.7]} 3... Nd5 {[%clk 0:02:58.8]}
4. Nc3 {[%clk 0:02:39.5]} 4... Nxc3 {[%clk 0:02:59.1]} 5. dxc3 {[%clk
0:02:38.6]} 5... Nc6 {[%clk 0:02:59.3]} 6. Bf4 {[%clk 0:02:35.8]} 6... Qb6
{[%clk 0:02:59.4]} 7. b3 {[%clk 0:02:30.8]} 7... Qc7 {[%clk 0:02:59.4]} 8. Qd2
{[%clk 0:02:28]} 8... e6 {[%clk 0:02:58.8]} 9. h4 {[%clk 0:02:24.7]} 9... h6
{[%clk 0:02:58.8]} 10. O-O-O {[%clk 0:02:23.6]} 10... a6 {[%clk 0:02:58.4]} 11.
h5 {[%clk 0:02:20.3]} 11... b5 {[%clk 0:02:55.7]} 12. g4 {[%clk 0:02:18.2]}
12... c4 {[%clk 0:02:54.8]} 13. Bg2 {[%clk 0:02:16.8]} 13... Rb8 {[%clk
0:02:42.3]} 14. Bg3 {[%clk 0:02:15.1]} 14... b4 {[%clk 0:02:25.9]} 15. g5 {[%clk
0:02:14.1]} 15... Qa5 {[%clk 0:02:10.8]} 16. Qf4 {[%clk 0:01:59]} 16... bxc3
{[%clk 0:01:57.7]} 17. a4 {[%clk 0:01:14.5]} 17... Qxa4 {[%clk 0:01:15.9]} 18.
Qxf7+ {[%clk 0:00:24.8]} 18... Kxf7 {[%clk 0:01:14.7]} 19. Rxd7+ {[%clk
0:00:25.7]} 19... Bxd7 {[%clk 0:01:08.4]} 20. bxa4 {[%clk 0:00:26.4]} 20... Ba3+
{[%clk 0:00:56.4]} 21. Kd1 {[%clk 0:00:26.5]} 21... Rb1+ {[%clk 0:00:47.9]} 22.
Ke2 {[%clk 0:00:26.4]} 22... Rxh1 {[%clk 0:00:48]} 23. g6+ {[%clk 0:00:27.3]}
23... Ke8 {[%clk 0:00:44.6]} 24. Bxh1 {[%clk 0:00:27.1]} 24... Bc5 {[%clk
0:00:34.8]} 25. Bh4 {[%clk 0:00:14.7]} 25... Nd4+ {[%clk 0:00:27.2]} 26. Nxd4
{[%clk 0:00:14.7]} 26... Bxd4 {[%clk 0:00:28.1]} 27. f4 {[%clk 0:00:15]} 27...
Bxa4 {[%clk 0:00:26.4]} 28. Bb7 {[%clk 0:00:14.6]} 28... Rf8 {[%clk 0:00:22.1]}
29. Bg3 {[%clk 0:00:14]} 29... Bb5 {[%clk 0:00:20.7]} 30. Bc8 {[%clk 0:00:13.6]}
30... Bd7 {[%clk 0:00:14.5]} 31. Bxa6 {[%clk 0:00:13.6]} 31... Rf5 {[%clk
0:00:14.7]} 32. Bxc4 {[%clk 0:00:09.9]} 32... Rxh5 {[%clk 0:00:14.8]} 33. Kf3
{[%clk 0:00:08.2]} 33... Rh3 {[%clk 0:00:14.6]} 34. Kg2 {[%clk 0:00:08.2]} 34...
Rh5 {[%clk 0:00:13.3]} 35. Be2 {[%clk 0:00:07.4]} 35... Bc6+ {[%clk 0:00:13.3]}
36. Bf3 {[%clk 0:00:04.6]} 36... Bxf3+ {[%clk 0:00:13.1]} 37. Kxf3 {[%clk
0:00:05.5]} 37... Rf5 {[%clk 0:00:12.5]} 38. Ke4 {[%clk 0:00:06.4]} 38... Bg1
{[%clk 0:00:12.1]} 39. Be1 {[%clk 0:00:06.8]} 39... h5 {[%clk 0:00:12]} 40. Bxc3
{[%clk 0:00:06.9]} 40... h4 {[%clk 0:00:12.3]} 41. Kf3 {[%clk 0:00:06.7]} 41...
Bh2 {[%clk 0:00:11]} 42. Bd2 {[%clk 0:00:07]} 42... Bg3 {[%clk 0:00:10.8]} 43.
Kg4 {[%clk 0:00:07.1]} 43... Kd7 {[%clk 0:00:10.5]} 44. Be3 {[%clk 0:00:06.1]}
44... Kc6 {[%clk 0:00:10.7]} 45. c4 {[%clk 0:00:06.7]} 45... Be1 {[%clk
0:00:09.5]} 46. Bc1 {[%clk 0:00:05.7]} 46... Bf2 {[%clk 0:00:08.5]} 47. Kf3
{[%clk 0:00:04.8]} 47... Be1 {[%clk 0:00:08.7]} 48. Kg4 {[%clk 0:00:05]} 48...
Kc5 {[%clk 0:00:07.8]} 49. Ba3+ {[%clk 0:00:04.3]} 49... Kxc4 {[%clk 0:00:08.1]}
50. Bf8 {[%clk 0:00:05.2]} 50... Rxf8 {[%clk 0:00:07.7]} 0-1

[Event "Early-Titled-Tuesday-Blitz-May-28-2024"]
[Site "Chess.com"]
[Date "2024.05.28"]
[Round "5"]
[White "KononenkoD"]
[Black "kleinebeer98"]
[Result "0-1"]
[WhiteElo "2597"]
[BlackElo "2964"]
[TimeControl "180+1"]
[EndTime "8:57:02 PDT"]
[Termination "kleinebeer98 won by checkmate"]

1. d4 {[%clk 0:02:59.6]} 1... d5 {[%clk 0:03:00.1]} 2. c4 {[%clk 0:02:59.4]}
2... Nc6 {[%clk 0:03:00.7]} 3. cxd5 {[%clk 0:02:51.8]} 3... Qxd5 {[%clk
0:03:00.6]} 4. e3 {[%clk 0:02:51.8]} 4... e5 {[%clk 0:03:01.3]} 5. Nc3 {[%clk
0:02:51.8]} 5... Bb4 {[%clk 0:03:02.1]} 6. Bd2 {[%clk 0:02:52.2]} 6... Bxc3
{[%clk 0:03:02.7]} 7. bxc3 {[%clk 0:02:52.2]} 7... Qd6 {[%clk 0:03:02.8]} 8. Nf3
{[%clk 0:02:48.4]} 8... Nge7 {[%clk 0:03:02.3]} 9. Bb5 {[%clk 0:02:31.2]} 9...
O-O {[%clk 0:03:00.9]} 10. h3 {[%clk 0:02:29]} 10... a6 {[%clk 0:02:59]} 11. Ba4
{[%clk 0:02:27.1]} 11... e4 {[%clk 0:02:50.1]} 12. Ng1 {[%clk 0:02:23.7]} 12...
Qg6 {[%clk 0:02:49.1]} 13. g3 {[%clk 0:02:22.8]} 13... Na5 {[%clk 0:02:21.4]}
14. Bb3 {[%clk 0:02:08.9]} 14... Be6 {[%clk 0:02:15.7]} 15. Ne2 {[%clk
0:02:06.3]} 15... Bc4 {[%clk 0:02:15.6]} 16. O-O {[%clk 0:01:58.9]} 16... Nd5
{[%clk 0:02:14.5]} 17. Re1 {[%clk 0:01:54.1]} 17... b5 {[%clk 0:02:12.9]} 18.
Nf4 {[%clk 0:01:45.3]} 18... Qc6 {[%clk 0:02:13.4]} 19. Nxd5 {[%clk 0:01:32.3]}
19... Qxd5 {[%clk 0:02:06.2]} 20. Rb1 {[%clk 0:01:29.8]} 20... f5 {[%clk
0:02:03.1]} 21. Bc1 {[%clk 0:01:29.2]} 21... Rf6 {[%clk 0:01:58.3]} 22. Kg2
{[%clk 0:01:23.6]} 22... Re8 {[%clk 0:01:45.7]} 23. Ba3 {[%clk 0:01:23]} 23...
Rh6 {[%clk 0:01:12.8]} 24. Bb4 {[%clk 0:01:22]} 24... Nxb3 {[%clk 0:01:03.5]}
25. axb3 {[%clk 0:01:17.8]} 25... Bd3 {[%clk 0:01:04]} 26. Rc1 {[%clk
0:01:08.7]} 26... Ree6 {[%clk 0:00:52.3]} 27. c4 {[%clk 0:01:03.7]} 27... bxc4
{[%clk 0:00:49.8]} 28. bxc4 {[%clk 0:01:04.6]} 28... Bxc4 {[%clk 0:00:50.5]} 29.
Qc2 {[%clk 0:01:03]} 29... Rc6 {[%clk 0:00:50.1]} 30. Bc5 {[%clk 0:01:00.8]}
30... Bd3 {[%clk 0:00:46.3]} 31. Qd1 {[%clk 0:00:47]} 31... f4 {[%clk 0:00:43]}
32. exf4 {[%clk 0:00:42.5]} 32... e3+ {[%clk 0:00:39.1]} 33. f3 {[%clk
0:00:41.2]} 33... Bf5 {[%clk 0:00:09.3]} 34. Rxe3 {[%clk 0:00:37.1]} 34... Bxh3+
{[%clk 0:00:08.9]} 35. Kf2 {[%clk 0:00:36.6]} 35... Bd7 {[%clk 0:00:09.2]} 36.
Qb3 {[%clk 0:00:22.1]} 36... Rh2+ {[%clk 0:00:06.5]} 37. Kg1 {[%clk 0:00:22.1]}
37... Qxb3 {[%clk 0:00:06.8]} 38. Rxb3 {[%clk 0:00:21.9]} 38... Rch6 {[%clk
0:00:07.7]} 39. Rb8+ {[%clk 0:00:20.3]} 39... Kf7 {[%clk 0:00:07.9]} 40. Rf8+
{[%clk 0:00:20.2]} 40... Ke6 {[%clk 0:00:05.6]} 41. Re1+ {[%clk 0:00:15.6]}
41... Kd5 {[%clk 0:00:06.1]} 42. Re5+ {[%clk 0:00:15.6]} 42... Kc4 {[%clk
0:00:06.8]} 43. Rf7 {[%clk 0:00:14]} 43... Kd3 {[%clk 0:00:05.8]} 44. g4 {[%clk
0:00:10]} 44... Bc6 {[%clk 0:00:04]} 45. d5 {[%clk 0:00:09.3]} 45... Bb5 {[%clk
0:00:02.9]} 46. Rxc7 {[%clk 0:00:06.8]} 46... Kd2 {[%clk 0:00:02.3]} 47. Bf2
{[%clk 0:00:06]} 47... Rh1+ {[%clk 0:00:02.3]} 48. Kg2 {[%clk 0:00:06.2]} 48...
Bf1+ {[%clk 0:00:03.1]} 49. Kg3 {[%clk 0:00:06.5]} 49... R6h3# {[%clk
0:00:03.9]} 0-1